Cogmind - Beta 9.4 @@@ ROGUE MODE // 2020.03.26 @ 18:26:10 // Winter2019/RPGLIKE Player: IAMCRAIG Result: Destroyed by as-32780 with Assembled Maul Performance ------------- Evolutions (0) 0 Regions Visited (4) 800 Robots Destroyed (47) 235 Value Destroyed (606) 606 Prototype IDs (24) 480 Alien Tech Used (0) 0 Bonus (300) 300 TOTAL SCORE: 2421 Bonus ------- Aligned with FarCom 300 Cogmind --------- Core Integrity 0/600 Matter 300/300 Energy 250/250 System Corruption 0% Temperature Cool (0) Movement Treading (160) Location -9/Mines Parts ------- > --- POWER (1) -------- Ion Engine > --- PROPULSION (2) --- Light Treads Light Treads > --- UTILITY (5) ------ Heat Sink Signal Interpreter Targeting Computer Targeting Computer Cloak of Protection > --- WEAPON (3) ------- Beam Cannon Beam Cannon Ripper > --- INVENTORY (1) ---- Large Matter Pod (150) Peak State ------------ > --- POWER ------------ Ion Engine > --- PROPULSION ------- Light Treads Light Treads > --- UTILITY ---------- Heat Sink Signal Interpreter Targeting Computer Targeting Computer Cloak of Protection > --- WEAPON ----------- Beam Cannon Beam Cannon Ripper > --- INVENTORY -------- Large Matter Pod [Rating: 21] Favorites ----------- Power Ion Engine Engine Ion Engine Propulsion Light Treads Treads Light Treads Leg Aluminum Leg Wheel Wheel Utility Targeting Computer Device Heat Sink Storage Medium Matter Pod Processor Targeting Computer Protection Light Armor Plating Weapon Beam Cannon Energy Cannon Beam Cannon Ballistic Gun Assault Rifle Ballistic Cannon Improved Light Cannon Special Weapon Mining Laser Slashing Weapon Ripper Build | -11 -10 -10 -10 -9 ------- Run | Scr Mat Min Exi Min Slots Evolved 7 | 4 2 . 1 . Power . | . . . . . Propulsion 1 | . 1 . . . Utility 4 | 3 . . 1 . Weapon 2 | 1 1 . . . Parts Attached 28 | 12 12 . 2 2 Power 1 | 1 . . . . Engine 1 | 1 . . . . Core . | . . . . . Reactor . | . . . . . Propulsion 5 | 3 2 . . . Treads 3 | 2 1 . . . Leg 1 | 1 . . . . Wheel 1 | . 1 . . . Hover . | . . . . . Flight . | . . . . . Utility 15 | 6 7 . 2 . Device 4 | 2 1 . 1 . Storage 3 | 2 1 . . . Processor 7 | 2 5 . . . Hackware . | . . . . . Protection 1 | . . . 1 . Artifact . | . . . . . Weapon 7 | 2 3 . . 2 Energy Gun . | . . . . . Energy Cannon 2 | . 2 . . . Ballistic Gun 2 | 2 . . . . Ballistic Cannon 1 | . 1 . . . Launcher . | . . . . . Special Weapon 1 | . . . . 1 Impact Weapon . | . . . . . Slashing Weapon 1 | . . . . 1 Piercing Weapon . | . . . . . Special Melee Weapon . | . . . . . Unidentified Prototypes . | . . . . . Parts Lost . | . . . . . Power . | . . . . . Propulsion . | . . . . . Utility . | . . . . . Weapon . | . . . . . Highest Loss Streak . | . . . . . Average Slot Usage (%) 98 | . 95 100 100 100 Engine 10 | . 11 10 9 9 Treads 15 | . 11 20 18 18 Device 11 | . 7 10 15 18 Storage 4 | . 10 . . . Processor 28 | . 28 30 27 27 Energy Cannon 16 | . 15 20 18 18 Ballistic Gun 3 | . 8 . . . Ballistic Cannon 3 | . . 10 9 . Slashing Weapon 1 | . . . . 8 Naked Turns . | . . . . . Heaviest Build 24 | 13 16 16 24 24 Greatest Support 40 | 20 20 40 40 40 Greatest Overweight (x) 1 | . 1 . . . Average Overweight (x) . | . . . . . Largest Inventory Capacity 1 | . 1 1 1 1 Average Capacity . | . . 1 1 1 Most Carried 1 | . 1 1 1 1 Average Carried . | . . 1 . 1 Final Capacity 1 | . 1 1 1 1 Final Carried 1 | . 1 1 1 1 Class Distribution -------------------- 76% | Mutant 20% | Scavenger-Mutant 3% | Gunner Dominant Class ---------------- Mutant | -10/Materials Mutant | -10/Mines Mutant | -10/Exiles Mutant | -9/Mines Resources | -11 -10 -10 -10 -9 ----------- Run | Scr Mat Min Exi Min Matter Collected 959 | 464 387 50 40 18 Remotely 531 | 288 243 . . . Salvage Created 985 | 188 531 67 . 199 Parts 72 | 11 54 7 . . Haulers Intercepted 2 | . 2 . . . Recyclers Shooed 2 | . 1 . . 1 Parts Field Recycled . | . . . . . Retrieved Matter . | . . . . . Parts Self-Destructed . | . . . . . Prevented . | . . . . . Kills | -11 -10 -10 -10 -9 ------- Run | Scr Mat Min Exi Min Combat Hostiles Destroyed 27 | . 12 2 . 13 Melee 7 | . . . . 7 Guns 6 | . 6 . . . Cannons 14 | . 6 2 . 6 Classes Destroyed 11 | 3 6 . . 2 Worker 6 | 2 2 1 . 1 Tunneler 6 | 4 1 1 . . Hauler 2 | . 2 . . . Recycler 1 | 1 . . . . Mechanic 1 | . 1 . . . Operator 1 | . 1 . . . Watcher 3 | . 3 . . . Swarmer 6 | . 6 . . . Grunt 8 | . 6 2 . . Demolisher 1 | . . . . 1 Assembled 12 | . . . . 12 Best Kill Streak 6 | 3 4 2 . 6 Combat Bots Only 5 | . 3 2 . 5 Max Kills in Single Turn 2 | 1 2 1 . 1 Gunslinging 1 | . 1 . . . Exploded . | . . . . . Melee 1 | . . . . 1 Uniques/NPCs Destroyed . | . . . . . Combat | -11 -10 -10 -10 -9 -------- Run | Scr Mat Min Exi Min Damage Taken 1417 | . 388 218 . 811 Core 1134 | . 314 186 . 634 Absorbed by Shields . | . . . . . Redirected to Core 965 | . 230 111 . 624 Core Remaining (%) 100 | 100 . . . . Volleys Fired 116 | 21 61 12 . 22 Largest 3 | 2 3 3 . 2 Hottest 159 | 40 159 159 . 120 Shots Fired 228 | 42 123 20 . 43 Gun 120 | 42 78 . . . Cannon 108 | . 45 20 . 43 Launcher . | . . . . . Special . | . . . . . Kinetic 133 | 42 79 12 . . Thermal 95 | . 44 8 . 43 Explosive . | . . . . . Electromagnetic . | . . . . . Robot Hit Streak 8 | 8 8 3 . 4 Robot Miss Streak 4 | 4 4 2 . 2 Penetration Max . | . . . . . Secondary Targets 1 | . 1 . . . Max Gunslinging Chain 1 | . 1 . . . Shots Hit Robots 135 | 24 67 10 . 34 Core Hits 62 | 8 26 5 . 23 Critical Hits . | . . . . . Critical Kills . | . . . . . Critical Parts Destroyed . | . . . . . Melee Attacks 16 | . . . . 16 Impact . | . . . . . Slashing 16 | . . . . 16 Piercing . | . . . . . Sneak Attacks 1 | . . . . 1 Combat Hostiles . | . . . . . Follow-up Attacks . | . . . . . Damage Inflicted 2508 | 334 1073 215 . 886 Guns 953 | 334 619 . . . Cannons 1081 | . 443 201 . 437 Explosions . | . . . . . Melee 448 | . . . . 448 Ramming 26 | . 11 14 . 1 Kinetic 1105 | 334 640 131 . . Thermal 929 | . 422 70 . 437 Explosive . | . . . . . Electromagnetic . | . . . . . Impact . | . . . . . Slashing 448 | . . . . 448 Piercing . | . . . . . Highest Corruption . | . . . . . Average Corruption . | . . . . . Corruption Purged . | . . . . . Overload Shots . | . . . . . Overflow Damage . | . . . . . Projectiles . | . . . . . Explosions . | . . . . . Melee . | . . . . . Knockbacks 2 | . . 2 . . Impact . | . . . . . Kinetic 2 | . . 2 . . Secondary . | . . . . . Self-Inflicted Damage . | . . . . . Shots . | . . . . . Rammed 6 | . 3 2 . 1 Targets Rammed 8 | . 4 3 . 1 Kicked . | . . . . . Crushed 2 | . 1 1 . . Highest Temperature 336 | . 336 303 . 18 Average Temperature 120 | . 120 145 . 11 Received Heat Transfer 248 | . 102 126 . 20 Effects 1 | . 1 . . . Energy Bleed 1 | . 1 . . . Siege Activations . | . . . . . Robots Corrupted . | . . . . . Combat Hostiles . | . . . . . Parts Fried . | . . . . . Impact Corruptions . | . . . . . Robots Melted . | . . . . . Combat Hostiles . | . . . . . Parts Melted 4 | . 4 . . . Heat Transferred 1961 | . 888 148 . 925 Parts Sabotaged . | . . . . . Parts Stolen . | . . . . . Parts Stripped . | . . . . . Power Chain Reactions . | . . . . . Missiles Intercepted . | . . . . . Alert | -11 -10 -10 -10 -9 ------- Run | Scr Mat Min Exi Min Peak Influence 239 | 35 239 115 . 55 Average Influence 59 | 18 82 85 . 16 Maximum Alert Level 1 | . 1 . . . Low Security (%) 93 | 100 87 100 . 100 Level 1 6 | . 12 . . . Level 2 . | . . . . . Level 3 . | . . . . . Level 4 . | . . . . . Level 5 . | . . . . . High Security . | . . . . . Max Security . | . . . . . Squads Dispatched 3 | . 3 . . . Investigation 2 | . 2 . . . Extermination . | . . . . . Reinforcement 1 | . 1 . . . Assault . | . . . . . Garrison . | . . . . . Intercept . | . . . . . Construction Impeded . | . . . . . Haulers Reinforced . | . . . . . Stealth | -11 -10 -10 -10 -9 --------- Run | Scr Mat Min Exi Min Distress Signals . | . . . . . Communications Jammed . | . . . . . Distress Signals . | . . . . . Times Spotted 38 | . 20 2 . 16 Peak Tracking Total 5 | . 5 2 . 3 Tactical Retreats . | . . . . . Traps | -11 -10 -10 -10 -9 ------- Run | Scr Mat Min Exi Min Traps Triggered 3 | . 3 . . . Indirectly . | . . . . . Trap Hack Attempts . | . . . . . Triggered . | . . . . . Disarmed . | . . . . . Reprogrammed . | . . . . . Reused . | . . . . . Traps Extracted . | . . . . . Installed . | . . . . . Triggered . | . . . . . Machines | -11 -10 -10 -10 -9 ---------- Run | Scr Mat Min Exi Min Machines Disabled 6 | . 2 3 . 1 Max in Single Turn 1 | . 1 1 . 1 Machines Sabotaged . | . . . . . Garrisons Compromised . | . . . . . Overloaded Fab Kills . | . . . . . Fab Network Shutdowns . | . . . . . Hacking | -11 -10 -10 -10 -9 --------- Run | Scr Mat Min Exi Min Machines Accessed 7 | . 6 . 1 . Terminals 5 | . 5 . . . Fabricators . | . . . . . Repair Stations . | . . . . . Recycling Units 1 | . 1 . . . Scanalyzers . | . . . . . Garrison Access . | . . . . . Total Hacks 26 | . 25 . 1 . Successful 17 | . 16 . 1 . Failed 9 | . 9 . . . Catastrophic . | . . . . . Database Lockouts . | . . . . . Manual 12 | . 11 . 1 . Terminals 23 | . 23 . . . Fabricators . | . . . . . Repair Stations . | . . . . . Recycling Units 2 | . 2 . . . Scanalyzers . | . . . . . Garrison Access . | . . . . . Terminal Hacks 9 | . 8 . 1 . Prototype ID Bank 1 | . 1 . . . Branch Access Points 1 | . 1 . . . Terminal Index 1 | . 1 . . . Alert Level 1 | . 1 . . . Unreport Threat 2 | . 2 . . . Locate Traps 1 | . 1 . . . Registered Components 1 | . 1 . . . EX-Prototype ID Bank 1 | . . . 1 . Fabricator Hacks . | . . . . . Repair Station Hacks . | . . . . . Recycling Unit Hacks 1 | . 1 . . . Report Inventory 1 | . 1 . . . Scanalyzer . | . . . . . Garrison Access Hacks . | . . . . . Unauthorized Hacks 17 | . 17 . . . Terminals 6 | . 6 . . . Botnet 5 | . 5 . . . Operators 1 | . 1 . . . Fabricators . | . . . . . Repair Stations . | . . . . . Recycling Units 1 | . 1 . . . Reject 1 | . 1 . . . Scanalyzers . | . . . . . Garrison Access . | . . . . . Data Cores Recovered . | . . . . . Used . | . . . . . Hacking Detections 6 | . 6 . . . Full Trace Events . | . . . . . Feedback Events . | . . . . . Feedback Blocked . | . . . . . Robot Schematics Acquired . | . . . . . Robots Built . | . . . . . Matter . | . . . . . Time . | . . . . . Total Robot Build Rating . | . . . . . Part Schematics Acquired . | . . . . . Parts Built . | . . . . . Matter . | . . . . . Time . | . . . . . Total Part Build Rating . | . . . . . Parts Repaired . | . . . . . Time . | . . . . . Parts Recycled . | . . . . . Recycled Matter . | . . . . . Retrieved Matter . | . . . . . Retrieved Components . | . . . . . Parts Scanalyzed . | . . . . . Part Schematics Acquired . | . . . . . Parts Damaged . | . . . . . Bothacking | -11 -10 -10 -10 -9 ------------ Run | Scr Mat Min Exi Min Used RIF Installer . | . . . . . Robots Hacked . | . . . . . Non-combat . | . . . . . Combat . | . . . . . Robot Hacks Applied . | . . . . . Relay Couplers Released . | . . . . . Robots Rewired . | . . . . . Allies Hacked . | . . . . . Hacks Repelled . | . . . . . Allies | -11 -10 -10 -10 -9 -------- Run | Scr Mat Min Exi Min Total Allies 1 | . . . . 1 Largest Group 1 | . . . . 1 Highest-Rated Group 31 | . . . . 31 Highest-Rated Ally 31 | . . . . 31 Total Orders . | . . . . . Ally Attacks 3 | . . . . 3 Total Damage 63 | . . . . 63 Kills . | . . . . . Allies Corrupted . | . . . . . Allies Melted . | . . . . . Intel | -11 -10 -10 -10 -9 ------- Run | Scr Mat Min Exi Min Robot Analysis Total . | . . . . . Derelict Logs Recovered 2 | . . . . 2 Drone Launches . | . . . . . Drone Recoveries . | . . . . . Exploration | -11 -10 -10 -10 -9 ------------- Run | Scr Mat Min Exi Min Turns Passed 3162 | 282 1299 304 640 637 Spaces Moved 1733 | 131 716 166 398 322 Core 8 | 8 . . . . Treads 1589 | 104 599 166 398 322 Legs 19 | 19 . . . . Wheels 117 | . 117 . . . Hover . | . . . . . Flight . | . . . . . Fastest Speed 50 | 50 90 160 160 160 Average Speed 154 | 147 148 160 160 160 Slowest Speed 160 | 160 160 160 160 160 Overloaded Moves . | . . . . . Propulsion Burnouts . | . . . . . Robots Hopped . | . . . . . Cave-ins Triggered . | . . . . . Exploration Rate (%) 61 | 7 94 55 77 73 Regions Visited 4 Branch Regions 3 Pre-discovered Areas 1 | . . . . 1 Known Exits Taken 3 | . 1 1 1 . Unknown Exits Taken 1 | 1 . . . . Scrap Searched 3 | . . 2 . 1 Spaces Dug . | . . . . . Terrain Destroyed 31 | . 31 . . . Melee . | . . . . . Projectile . | . . . . . AOE 31 | . 31 . . . Actions | -11 -10 -10 -10 -9 --------- Run | Scr Mat Min Exi Min Total 1964 | 174 826 186 402 376 Wait 22 | 7 9 1 . 5 Move 1729 | 130 715 165 397 322 Hop . | . . . . . Pick Up 2 | . 1 . 1 . Fast Attach 26 | 12 11 . 1 2 Attach 1 | . . . 1 . Detach 5 | 1 3 . 1 . Swap 1 | . 1 . . . Drop 13 | 3 7 . 1 2 Fire 116 | 21 61 12 . 22 Melee 16 | . . . . 16 Ram . | . . . . . Kick . | . . . . . Crush 8 | . 4 3 . 1 Escape Stasis . | . . . . . Rewire . | . . . . . Trap . | . . . . . Miscellaneous 25 | . 14 5 . 6 Route ------- -11/Scrapyard -10/Materials (discovered 4 exits: *Mat x3 / *Min) -10/Mines -10/Exiles -9/Mines (discovered 1 exit: *Mat) History --------- Turn | Location | Event 1 | -11/Scrapyard | Upgraded with Utility slot (x3) 1 | -11/Scrapyard | Upgraded with Weapon slot (x1) 3 | -11/Scrapyard | Discovered new exit (range 16) 283 | -11/Scrapyard | Entered Materials 303 | -10/Materials | Build established: Scavenger-Mutant 355 | -10/Materials | Discovered new exit (range 13) 623 | -10/Materials | Identified exit to Mines 738 | -10/Materials | Discovered new exit (range 4) 743 | -10/Materials | Identified exit to Materials 901 | -10/Materials | Discovered exit to Materials (range 6) 952 | -10/Materials | Build established: Mutant 1219 | -10/Materials | Reached level 2 1219 | -10/Materials | Upgraded with Propulsion slot (x1) 1219 | -10/Materials | Upgraded with Weapon slot (x1) 1490 | -10/Materials | Discovered exit to Materials (range 15) 1582 | -10/Materials | Entered Mines 1880 | -10/Mines | Deemed a non-threat by the Exiles lab entrance 1880 | -10/Mines | Discovered new exit (range 5) 1885 | -10/Mines | Identified exit to Exiles 1886 | -10/Mines | Entered Exiles 1888 | -10/Exiles | Reached level 3 1899 | -10/Exiles | Upgraded with Utility slot (x1) 1927 | -10/Exiles | Met 8R-AWN 1955 | -10/Exiles | Met EX-HEX 2017 | -10/Exiles | Met EX-BIN 2036 | -10/Exiles | Aligned with FarCom system 2038 | -10/Exiles | Given EX-Vault access code 2076 | -10/Exiles | Opened EX-Vault 2098 | -10/Exiles | Found Cloak of Protection 2177 | -10/Exiles | Warned to stay clear of 0b10 Research branches 2288 | -10/Exiles | Met EX-DEC 2329 | -10/Exiles | Visited The Gauntlet 2507 | -10/Exiles | Discovered new exit (range 14) 2525 | -10/Exiles | Identified exit to Mines 2526 | -10/Exiles | Left Exiles lab with Cloak of Protection 2526 | -10/Exiles | Entered Mines 2529 | -9/Mines | Received a Mining Laser from a helpful Derelict 2555 | -9/Mines | Discovered new exit (range 8) 2563 | -9/Mines | Identified exit to Materials 2566 | -9/Mines | A weapon hastily lodged in a ceiling crevice suddenly fell to the ground 2596 | -9/Mines | Assembled infested the area 2684 | -9/Mines | Learned location of Zion (-7) 2755 | -9/Mines | Core integrity fell below 50% 2826 | -9/Mines | Core integrity fell below 20% 2873 | -9/Mines | Learned location of 1 exit from Proximity Caves 3163 | -9/Mines | Destroyed by as-32780 with Assembled Maul Last Messages --------------- 02839_ Found 43 Matter. 02839_ Found Maul. 02839_ Found Lgt. Assault Rifle. 02839_ Found Heat Shielding. 02855_ as-13719 destroyed. 02860_ Used Protomatter to restore core integrity (+48, depleted) 02867_ as-20378 destroyed. 02873_ Acquired derelict log, extracted data. Data stored: Proximity Caves exits (x1). 02876_ R-06 Scavenger collects Wheel. 02883_ as-47244 destroyed. 02895_ R-06 Scavenger collects Wheel. 02899_ as-81772 destroyed. 02906_ Used Protomatter to restore core integrity (+24, depleted) 02954_ as-83725 destroyed. 02957_ K-01 Serf collects debris. 03024_ A derelict is hurriedly installing traps. 03026_ EP-EST(g): "Hehe, this'll put a wrench in their mining defense operations..." 03026_ EP-EST(g) slips into the shadows. Map ----- +----------------------------------------------------+ | #?????????????????????????########### #?????????? | | ##????????????????????????# #?????????? | | #???????????????????????## #?????"""?? | | #??####?????????????????## ###########?????"""?? | | #?## #???????????????#### ####????????????"""?? | | ### ##??????????????# # ####????????????"""?? | | ##????????????### #%% ##???????????!%%?? | | #### ##???????????## ## ###?????????#%#?? | | ##?## #####???????# % ##????????#%#?? | | #### ##??????# ## ######???#%#?? | | < ######## ## %#???# #?? | | #=%## % % ##### #???#%#?? | | ##### ## | #####% ####???# #???# #?? | | ????###### ###### ####% ##??????#!#???#%#?? | | ?????????## ##????# *%! ##??????#[#???#%#?? | | ??????????####?????# ="" ##?????#%#???#!#?? | | ???????????????????######%"" ! #?????#/##### #?? | | ????????????????????????#"""" %* #?????# %=%%!%#?? | | ????????????????????????# = ##?????####=####?? | | ????????????????????????# = #?????????#%#????? | | ????????????????????????## ##?????????#=#????? | | ?????????????????????????## ##??????????#%#????? | | ??????????????????????????# ##???????????# #????? | | ??????????????????####????# !#????????????# #????? | | ?????????????????## ######=%#????????????# #????? | | ????????????????## !|%@a=*#????????????# ###??? | | ???????????????## !%=% a #????????????# *##?? | | ??????????????## ]!########????????????# %=#?? | | ??????????????# |%##???????????????????# #?? | | ????????YY????# *##????????????????????#% ##? | | ?????????????## = ##????????????????????# ## | | ????????????## =%= #????????????####????## # | | ??##???????## * #??########### #####?## | | ?## ###++## #??# < #### | | ?# ##??# %% =%= # | | ?# #???# #????### # # ## | | ??# ##??## ####???# ## ## #####? | | ??# ###??## ##??# ###### #????? | | ??# #???## ##?# #????# #????? | | ??## ##?## ### #????# #????? | | ???### ### ## #????# #????? | | ?????#### # #????# #????? | | ????????## # ###??# ##???? | | ?????????## ## #??# #???? | | ??????????## #### #### #??## #???? | | ???????????# ##??## #####??### #???# #???? | | ??????????# #????# #????????# #???# ####? | | ?????????# #????# #????????# #???# #? | | ?????????# ????# ########## ###?#### #? | | ?????????## #???# ##???# ## | +----------------------------------------------------+ Best States ------------- Heat Dissipation 47 Energy Generation 10 Energy Capacity 250 Matter Stores 400 Matter Capacity 400 Sight Range 18 Terrain Scan Range 16 Terrain Scan Density 110 Armor Coverage 150 Evasion (%) 42 Targeting Accuracy 15 Recoil Reduction 2 Item Schematics ----------------- None Robot Schematics ------------------ None Fabricated ------------ Nothing Alien Tech Used ----------------- None Achievements -------------- None Challenges ------------ None RPGLIKE | -11 -10 -10 -10 -9 --------- Run | Scr Mat Min Exi Min Levels Raised 2 | . 1 . 1 . XP Earned 6915 | 3000 1915 975 350 675 XP Spent 5970 | 2900 1550 . 1520 . Upgrades 10 | 4 3 . 3 . Propulsion Slot 1 | . 1 . . . Utility Slot 4 | 3 . . 1 . Weapon Slot 2 | 1 1 . . . Heat Dissipation 2 | . . . 2 . Inventory Capacity 1 | . 1 . . . Protomatter Created 206 | . 115 39 . 52 Integrity Restored 551 | . 311 117 . 123 Core 528 | . 288 117 . 123 Parts 23 | . 23 . . . Protomatter Decayed 33 | . 11 . . 22 Game ------ Seed ImprinterTractorBattery Manual? 0 Play Time 00:28:31 Cumulative 52.4 hours Start 2020.03.26 @ 04:30:05 End 2020.03.26 @ 18:26:10 Sessions 2 Manual Loads 0 Difficulty Rogue Special Mode Winter2019/RPGLIKE Game No. 10 Rogue 10 Adventurer 0 Explorer 0 Win Type - Total 1 Types 1/0/0/0/0/0/0 Lore% 38 Gallery% 47 Achievement% 53 Wizard Run 0 Options --------- ASCII 1 Keyboard 1 Movement Numpad Keybinds 0 Fullscreen 1 Font 16/SmallcapsGlow Map View 75x55 Tactical HUD 1 Map Filters NONE Filters NONE Steam 1 RUN: 6b278267-a9bd-4ba2-9ad3-0eaba19b1173